fUST/lending_fUST_20250522
["ID","MTS","AMOUNT","RATE_DAILY","PERIOD"]
[361911018,1747884643214,-243.09,0.00022739,2]
[361911019,1747884643224,-430.0,0.00022739,2]
[361911020,1747884643234,-430.0,0.00022739,2]
[361911021,1747884643243,-430.0,0.00022739,2]
[361911022,1747884643252,-430.0,0.00022739,2]
[361911023,1747884643262,-430.0,0.00022739,2]
[361911024,1747884643271,-430.0,0.00022739,2]
[361911025,1747884643280,-430.0,0.00022739,2]
[361911026,1747884643289,-430.0,0.00022739,2]
[361911027,1747884643298,-475.58,0.00022739,2]
[361911028,1747884643307,-430.0,0.00022739,2]
[361911029,1747884643316,-430.0,0.00022739,2]
[361911030,1747884643326,-430.0,0.00022739,2]
[361911031,1747884643335,-419.4,0.00022739,2]
[361911032,1747884643344,-430.0,0.00022739,2]
[361911033,1747884643354,-264.46,0.00022739,2]
[361911034,1747884643363,-212.52,0.00022739,2]
[361911035,1747884643372,-183.18,0.00022739,2]
[361911036,1747884643381,-430.0,0.00022739,2]
[361911037,1747884643390,-430.0,0.00022739,2]
[361911038,1747884643400,-495.54,0.00022739,2]
[361911039,1747884643409,-376.32,0.00022739,2]
[361911040,1747884643419,-2102.75,0.00022739,2]
[361911041,1747884643428,-430.0,0.00022739,2]
[361911042,1747884643438,-430.0,0.00022739,2]
[361911043,1747884643447,-430.0,0.00022739,2]
[361911044,1747884643456,-430.0,0.00022739,2]
[361911045,1747884643466,-430.0,0.00022739,2]
[361911046,1747884643576,-158.58,0.00022739,2]
[361911047,1747884643587,-520.34,0.00022739,2]
[361911048,1747884643597,-461.26,0.00022739,2]
[361911049,1747884643607,-513.23,0.00022739,2]
[361911051,1747884643617,-430.0,0.00022739,2]
[361911052,1747884643627,-430.0,0.00022739,2]
[361911053,1747884643636,-171.7,0.00022739,2]
[361911054,1747884643646,-1133.27,0.00022739,2]
[361911055,1747884643655,-430.0,0.00022739,2]
[361911056,1747884643665,-222.64,0.00022739,2]
[361911058,1747884643674,-430.0,0.00022739,2]
[361911059,1747884643683,-430.0,0.00022739,2]
[361911060,1747884643694,-430.0,0.00022739,2]
[361911061,1747884643703,-430.0,0.00022739,2]
[361911063,1747884643712,-1754.8,0.00022739,2]
[361911064,1747884643721,-430.0,0.00022739,2]
[361911065,1747884643731,-430.0,0.00022739,2]
[361911066,1747884643740,-222.28,0.00022739,2]
[361911067,1747884643749,-430.0,0.00022739,2]
[361911068,1747884643759,-430.0,0.00022739,2]
[361911069,1747884643769,-430.0,0.00022739,2]
[361911070,1747884643778,-494.71,0.00022739,2]
[361911071,1747884643788,-430.0,0.00022739,2]
[361911072,1747884643798,-553.44,0.00022739,2]
[361911073,1747884643808,-430.0,0.00022739,2]
[361911074,1747884643818,-563.7,0.00022739,2]
[361911075,1747884643827,-430.0,0.00022739,2]
[361911076,1747884643836,-430.0,0.00022739,2]
[361911077,1747884643845,-430.0,0.00022739,2]
[361911078,1747884643855,-430.0,0.00022739,2]
[361911079,1747884643867,-430.0,0.00022739,2]
[361911080,1747884643876,-430.0,0.00022739,2]
[361911081,1747884643885,-568.05,0.00022739,2]
[361911082,1747884643895,-430.0,0.00022739,2]
[361911083,1747884643905,-627.79,0.00022739,2]
[361911084,1747884643914,-556.22,0.00022739,2]
[361911085,1747884643923,-430.0,0.00022739,2]
[361911086,1747884643932,-430.0,0.00022739,2]
[361911087,1747884643943,-430.0,0.00022739,2]
[361911088,1747884643953,-430.0,0.00022739,2]
[361911089,1747884643962,-430.0,0.00022739,2]
[361911090,1747884643971,-332.88,0.00022739,2]
[361911091,1747884643982,-430.0,0.00022739,2]
[361911092,1747884643991,-159.72,0.00022739,2]
[361911093,1747884644000,-521.3,0.00022739,2]
[361911094,1747884644010,-430.0,0.00022739,2]
[361911095,1747884644019,-1280.72751852,0.00022762,7]
[361911096,1747884644029,-151.0,0.000228,9]
[361911097,1747884644039,-1280.72751852,0.00022934,8]
[361911098,1747884644048,-541.73784814,0.00023,30]
[361911099,1747884644058,-894.06508876,0.00023,30]
[361911100,1747884644069,-273.42,0.00023012,2]
[361911101,1747884644078,-430.0,0.00023012,2]
[361911102,1747884644087,-453.93,0.00023012,2]
[361911103,1747884644096,-430.0,0.00023012,2]
[361911104,1747884644106,-921.43,0.00023012,2]
[361911105,1747884644115,-430.0,0.00023012,2]
[361911106,1747884644124,-1321.89,0.00023012,2]
[361911107,1747884644134,-430.0,0.00023012,2]
[361911108,1747884644143,-208.39021645,0.00023013,2]
[361911109,1747884644153,-430.0,0.00023013,2]
[361911110,1747884644162,-430.0,0.00023013,2]
[361911111,1747884644172,-430.0,0.00023013,2]
[361911112,1747884644182,-430.0,0.00023013,2]
[361911113,1747884644191,-560.39,0.00023013,2]
[361911114,1747884644200,-238.98,0.00023013,2]
[361911115,1747884644210,-430.0,0.00023013,2]
[361911116,1747884644219,-430.0,0.00023013,2]
[361911117,1747884644228,-430.0,0.00023013,2]
[361911118,1747884644238,-430.0,0.00023013,2]
[361911119,1747884644247,-509.96,0.00023013,2]
[361911120,1747884644257,-213.68,0.00023013,2]
[361911121,1747884644266,-430.0,0.00023013,2]
[361911122,1747884644275,-430.0,0.00023013,2]
[361911123,1747884644284,-2102.75,0.00023013,2]
[361911124,1747884644293,-430.0,0.00023013,2]
[361911125,1747884644303,-430.0,0.00023013,2]
[361911126,1747884644312,-414.58,0.00023013,2]
[361911127,1747884644321,-430.0,0.00023013,2]
[361911128,1747884644331,-430.0,0.00023013,2]
[361911129,1747884644340,-513.23,0.00023013,2]
[361911130,1747884644349,-430.0,0.00023013,2]
[361911131,1747884644360,-430.0,0.00023013,2]
[361911132,1747884644371,-1133.27,0.00023013,2]
[361911133,1747884644381,-430.0,0.00023013,2]
[361911134,1747884644390,-430.0,0.00023013,2]
[361911135,1747884644399,-430.0,0.00023013,2]
[361911136,1747884644408,-430.0,0.00023013,2]
[361911137,1747884644417,-430.0,0.00023013,2]
[361911138,1747884644426,-1754.8,0.00023013,2]
[361911139,1747884644436,-430.0,0.00023013,2]
[361911140,1747884644445,-430.0,0.00023013,2]
[361911141,1747884644454,-430.0,0.00023013,2]
[361911142,1747884644463,-430.0,0.00023013,2]
[361911143,1747884644473,-430.0,0.00023013,2]
[361911144,1747884644483,-430.0,0.00023013,2]
[361911145,1747884644492,-494.71,0.00023013,2]
[361911146,1747884644502,-430.0,0.00023013,2]
[361911147,1747884644512,-430.0,0.00023013,2]
[361911148,1747884644522,-430.0,0.00023013,2]
[361911149,1747884644534,-430.0,0.00023013,2]
[361911150,1747884644544,-430.0,0.00023013,2]
[361911151,1747884644554,-430.0,0.00023013,2]
[361911152,1747884644563,-208.73,0.00023013,2]
[361911153,1747884644572,-568.05,0.00023013,2]
[361911154,1747884644582,-430.0,0.00023013,2]
[361911155,1747884644591,-627.79,0.00023013,2]
[361911156,1747884644601,-430.0,0.00023013,2]
[361911157,1747884644611,-430.0,0.00023013,2]
[361911158,1747884644620,-430.0,0.00023013,2]
[361911159,1747884644629,-430.0,0.00023013,2]
[361911160,1747884644639,-430.0,0.00023013,2]
[361911161,1747884644649,-430.0,0.00023013,2]
[361911162,1747884644658,-521.3,0.00023013,2]
[361911163,1747884644668,-430.0,0.00023013,2]
[361911164,1747884644677,-151.0,0.000231,9]
[361911165,1747884644686,-1280.72751852,0.00023107,8]
[361911166,1747884644695,-760.0,0.0002326,120]
[361911167,1747884644705,-760.0,0.0002327,120]
[361911168,1747884644714,-1280.72751852,0.00023279,8]
[361911169,1747884644724,-760.0,0.0002328,120]
[361911170,1747884644733,-430.0,0.00023286,2]
[361911171,1747884644743,-453.93,0.00023286,2]
[361911172,1747884644752,-430.0,0.00023286,2]
[361911173,1747884644761,-921.43,0.00023286,2]
[361911174,1747884644771,-379.71,0.00023286,2]
[361911175,1747884644780,-1321.89,0.00023286,2]
[361911176,1747884644790,-430.0,0.00023286,2]
[361911177,1747884644800,-221.44,0.00023287,2]
[361911178,1747884644809,-430.0,0.00023287,2]
[361911179,1747884644820,-435.5,0.00023287,2]
[361911180,1747884644829,-430.0,0.00023287,2]
[361911181,1747884644839,-430.0,0.00023287,2]
[361911182,1747884644849,-288.0,0.00023287,2]
[361911183,1747884644861,-430.0,0.00023287,2]
[361911184,1747884644870,-430.0,0.00023287,2]
[361911185,1747884644879,-230.32,0.00023287,2]
[361911186,1747884644889,-563.96,0.00023287,2]
[361911187,1747884644899,-2102.75,0.00023287,2]
[361911188,1747884644908,-430.0,0.00023287,2]
[361911189,1747884644918,-430.0,0.00023287,2]
[361911190,1747884644927,-430.0,0.00023287,2]
[361911191,1747884644939,-430.0,0.00023287,2]
[361911192,1747884644949,-513.23,0.00023287,2]
[361911193,1747884644959,-430.0,0.00023287,2]
[361911194,1747884644968,-430.0,0.00023287,2]
[361911195,1747884644978,-1133.27,0.00023287,2]
[361911196,1747884644989,-430.0,0.00023287,2]
[361911197,1747884644999,-430.0,0.00023287,2]
[361911198,1747884645008,-430.0,0.00023287,2]
[361911199,1747884645018,-430.0,0.00023287,2]
[361911200,1747884645028,-430.0,0.00023287,2]
[361911201,1747884645037,-1754.8,0.00023287,2]
[361911202,1747884645047,-430.0,0.00023287,2]
[361911203,1747884645057,-430.0,0.00023287,2]
[361911204,1747884645067,-430.0,0.00023287,2]
[361911205,1747884645076,-430.0,0.00023287,2]
[361911206,1747884645087,-430.0,0.00023287,2]
[361911207,1747884645096,-430.0,0.00023287,2]
[361911208,1747884645106,-494.71,0.00023287,2]
[361911209,1747884645115,-430.0,0.00023287,2]
[361911210,1747884645124,-430.0,0.00023287,2]
[361911211,1747884645134,-430.0,0.00023287,2]
[361911212,1747884645144,-430.0,0.00023287,2]
[361911213,1747884645154,-449.16,0.00023287,2]
[361911214,1747884645164,-430.0,0.00023287,2]
[361911215,1747884645173,-568.05,0.00023287,2]
[361911216,1747884645183,-430.0,0.00023287,2]
[361911217,1747884645193,-627.79,0.00023287,2]
[361911218,1747884645203,-204.98,0.00023287,2]
[361911219,1747884645213,-430.0,0.00023287,2]
[361911220,1747884645224,-430.0,0.00023287,2]
[361911221,1747884645233,-430.0,0.00023287,2]
[361911222,1747884645243,-430.0,0.00023287,2]
[361911223,1747884645253,-547.78,0.00023287,2]
[361911224,1747884645263,-4107.68,0.00023287,2]
[361911225,1747884645273,-521.3,0.00023287,2]
[361911226,1747884645283,-495.48,0.00023287,2]
[361911227,1747884645293,-151.0,0.000234,7]
[361911228,1747884645402,-1300.56505869,0.00023445,2]
[361911229,1747884645412,-1280.72751852,0.00023452,9]
[361911230,1747884645422,-500.0,0.00023513,2]
[361911231,1747884645432,-600.0,0.00023513,2]
[361911232,1747884645442,-430.0,0.0002356,2]
[361911233,1747884645452,-453.93,0.0002356,2]
[361911234,1747884645461,-348.62,0.0002356,2]
[361911235,1747884645471,-921.43,0.0002356,2]
[361911236,1747884645480,-1321.89,0.0002356,2]
[361911237,1747884645490,-430.0,0.0002356,2]
[361911238,1747884645499,-430.0,0.00023561,2]
[361911239,1747884645508,-430.0,0.00023561,2]
[361911240,1747884645518,-430.0,0.00023561,2]
[361911241,1747884645527,-430.0,0.00023561,2]
[361911242,1747884645537,-430.0,0.00023561,2]
[361911243,1747884645549,-2102.75,0.00023561,2]
[361911244,1747884645558,-242.78,0.00023561,2]
[361911245,1747884645568,-430.0,0.00023561,2]
[361911246,1747884645578,-430.0,0.00023561,2]
[361911247,1747884645587,-430.0,0.00023561,2]
[361911248,1747884645597,-513.23,0.00023561,2]
[361911249,1747884645606,-430.0,0.00023561,2]
[361911250,1747884645615,-430.0,0.00023561,2]
[361911251,1747884645625,-1133.27,0.00023561,2]
[361911252,1747884645634,-430.0,0.00023561,2]
[361911253,1747884645644,-430.0,0.00023561,2]
[361911254,1747884645653,-423.06,0.00023561,2]
[361911255,1747884645663,-430.0,0.00023561,2]
[361911256,1747884645673,-430.0,0.00023561,2]
[361911257,1747884645683,-1754.8,0.00023561,2]
[361911258,1747884645692,-430.0,0.00023561,2]
[361911259,1747884645702,-430.0,0.00023561,2]
[361911260,1747884645712,-578.94,0.00023561,2]
[361911261,1747884645722,-530.58,0.00023561,2]
[361911262,1747884645732,-430.0,0.00023561,2]
[361911263,1747884645741,-430.0,0.00023561,2]
[361911264,1747884645750,-494.71,0.00023561,2]
[361911265,1747884645759,-430.0,0.00023561,2]
[361911266,1747884645769,-430.0,0.00023561,2]
[361911267,1747884645779,-456.72,0.00023561,2]
[361911268,1747884645789,-430.0,0.00023561,2]
[361911269,1747884645800,-430.0,0.00023561,2]
[361911270,1747884645810,-568.05,0.00023561,2]
[361911271,1747884645820,-430.5,0.00023561,2]
[361911272,1747884645830,-627.79,0.00023561,2]
[361911273,1747884645839,-430.0,0.00023561,2]
[361911274,1747884645849,-430.0,0.00023561,2]
[361911275,1747884645863,-430.0,0.00023561,2]
[361911277,1747884645872,-430.0,0.00023561,2]
[361911279,1747884645882,-521.3,0.00023561,2]
[361911281,1747884645893,-1280.72751852,0.00023624,9]
[361911283,1747884645903,-151.0,0.0002367,2]
[361911285,1747884645914,-207.4,0.0002367,2]
[361911286,1747884645924,-151.0,0.000237,8]
[361911287,1747884645936,-1280.72751852,0.00023797,9]
[361911288,1747884645946,-430.0,0.00023834,2]
[361911289,1747884645955,-453.93,0.00023834,2]
[361911290,1747884645965,-921.43,0.00023834,2]
[361911291,1747884645975,-1321.89,0.00023834,2]
[361911292,1747884645984,-430.0,0.00023834,2]
[361911293,1747884645993,-430.0,0.00023835,2]
[361911294,1747884646003,-430.0,0.00023835,2]
[361911295,1747884646013,-430.0,0.00023835,2]
[361911296,1747884646022,-430.0,0.00023835,2]
[361911297,1747884646031,-430.0,0.00023835,2]
[361911298,1747884646041,-2102.75,0.00023835,2]
[361911299,1747884646052,-430.0,0.00023835,2]
[361911300,1747884646062,-430.0,0.00023835,2]
[361911301,1747884646071,-430.0,0.00023835,2]
[361911302,1747884646080,-513.23,0.00023835,2]
[361911303,1747884646090,-460.4,0.00023835,2]
[361911304,1747884646102,-430.0,0.00023835,2]
[361911305,1747884646112,-1133.27,0.00023835,2]
[361911306,1747884646123,-571.69,0.00023835,2]
[361911307,1747884646135,-574.44,0.00023835,2]
[361911308,1747884646144,-430.0,0.00023835,2]
[361911309,1747884646153,-430.0,0.00023835,2]
[361911310,1747884646162,-1754.8,0.00023835,2]
[361911311,1747884646171,-330.88,0.00023835,2]
[361911312,1747884646182,-430.0,0.00023835,2]
[361911313,1747884646191,-430.0,0.00023835,2]
[361911314,1747884646201,-430.0,0.00023835,2]
[361911315,1747884646211,-494.71,0.00023835,2]
[361911316,1747884646221,-430.0,0.00023835,2]
[361911317,1747884646238,-549.02,0.00023835,2]
[361911318,1747884646254,-430.0,0.00023835,2]
[361911319,1747884646265,-374.04,0.00023835,2]
[361911320,1747884646276,-568.05,0.00023835,2]
[361911321,1747884646287,-627.79,0.00023835,2]
[361911322,1747884646296,-430.0,0.00023835,2]
[361911323,1747884646306,-430.0,0.00023835,2]
[361911324,1747884646317,-430.0,0.00023835,2]
[361911325,1747884646327,-431.62235717,0.00023835,2]
[361911326,1747884646337,-521.3,0.00023835,2]
[361911327,1747884646347,-153.35383023,0.0002388,2]
[361911328,1747884646357,-151.0,0.000239,6]
[361911330,1747884646368,-1280.72751852,0.00023969,10]
[361911332,1747884646379,-168.058999,0.00023973,2]
[361911333,1747884646389,-1267.86191931,0.00024,2]
[361911334,1747884646399,-2000.0,0.00024,5]
[361911335,1747884646410,-151.0,0.00024,6]
[361911336,1747884646419,-113547.22193913,0.00024,21]
[361911337,1747884646432,-151.0,0.00024,7]
[361911338,1747884646441,-196.0,0.00024,7]
[361911339,1747884646451,-196.0,0.00024,7]
[361911340,1747884646461,-1000.0,0.0002406,2]
[361911341,1747884646471,-1200.0,0.0002406,2]
[361911342,1747884646481,-151.0,0.000241,6]
[361911343,1747884646490,-430.0,0.00024108,2]
[361911344,1747884646500,-453.93,0.00024108,2]
[361911345,1747884646510,-921.43,0.00024108,2]
[361911346,1747884646520,-1321.89,0.00024108,2]
[361911347,1747884646530,-430.0,0.00024108,2]
[361911348,1747884646539,-160.0,0.00024108,2]
[361911349,1747884646551,-430.0,0.00024109,2]
[361911350,1747884646561,-430.0,0.00024109,2]
[361911351,1747884646571,-430.0,0.00024109,2]
[361911352,1747884646581,-430.0,0.00024109,2]
[361911353,1747884646591,-430.0,0.00024109,2]
[361911354,1747884646601,-2102.75,0.00024109,2]
[361911355,1747884646612,-430.0,0.00024109,2]
[361911356,1747884646623,-401.84,0.00024109,2]
[361911357,1747884646632,-430.0,0.00024109,2]
[361911358,1747884646643,-513.23,0.00024109,2]
[361911359,1747884646653,-430.0,0.00024109,2]
[361911360,1747884646663,-1133.27,0.00024109,2]
[361911361,1747884646674,-280.36001826,0.00024109,2]
[361911362,1747884646683,-430.0,0.00024109,2]
[361911363,1747884646694,-1754.8,0.00024109,2]
[361911364,1747884646703,-430.0,0.00024109,2]
[361911365,1747884646713,-430.0,0.00024109,2]
[361911366,1747884646725,-430.0,0.00024109,2]
[361911367,1747884646735,-494.71,0.00024109,2]
[361911368,1747884646747,-430.0,0.00024109,2]
[361911369,1747884646757,-430.0,0.00024109,2]
[361911370,1747884646767,-568.05,0.00024109,2]
[361911371,1747884646778,-627.79,0.00024109,2]
[361911372,1747884646787,-516.56,0.00024109,2]
[361911373,1747884646799,-430.0,0.00024109,2]
[361911374,1747884646808,-430.0,0.00024109,2]
[361911375,1747884646818,-521.3,0.00024109,2]
[361911376,1747884646828,-1300.56505869,0.00024123,2]
[361911377,1747884646839,-1280.72751852,0.00024141,10]
[361911378,1747884646848,-151.0,0.000243,7]
[361911379,1747884646867,-1280.72751852,0.00024314,10]
[361911380,1747884646877,-430.0,0.00024382,2]
[361911381,1747884646887,-453.93,0.00024382,2]
[361911382,1747884646897,-921.43,0.00024382,2]
[361911383,1747884646909,-1321.89,0.00024382,2]
[361911384,1747884646919,-430.0,0.00024382,2]
[361911385,1747884646929,-430.0,0.00024383,2]
[361911386,1747884646942,-462.88,0.00024383,2]
[361911387,1747884646951,-430.0,0.00024383,2]
[361911388,1747884646961,-430.0,0.00024383,2]
[361911389,1747884646971,-430.0,0.00024383,2]
[361911390,1747884646980,-2102.75,0.00024383,2]
[361911391,1747884646990,-430.0,0.00024383,2]
[361911392,1747884646999,-391.4,0.00024383,2]
[361911393,1747884647010,-513.23,0.00024383,2]
[361911394,1747884647019,-519.82,0.00024383,2]
[361911395,1747884647030,-1133.27,0.00024383,2]
[361911396,1747884647040,-430.0,0.00024383,2]
[361911397,1747884647052,-1754.8,0.00024383,2]
[361911398,1747884647061,-493.3,0.00024383,2]
[361911399,1747884647214,-430.0,0.00024383,2]
[361911400,1747884647224,-430.0,0.00024383,2]
[361911401,1747884647234,-494.71,0.00024383,2]
[361911402,1747884647243,-430.0,0.00024383,2]
[361911403,1747884647253,-430.0,0.00024383,2]
[361911404,1747884647262,-568.05,0.00024383,2]
[361911405,1747884647272,-627.79,0.00024383,2]
[361911406,1747884647282,-255.3,0.00024383,2]
[361911407,1747884647292,-430.0,0.00024383,2]
[361911408,1747884647303,-521.3,0.00024383,2]
[361911409,1747884647313,-151.0,0.000244,9]
[361911410,1747884647322,-1280.72751852,0.00024486,11]
[361911411,1747884647332,-1420.517981,0.00024498,2]
[361911412,1747884647342,-2000.0,0.000245,5]
[361911413,1747884647351,-500.0,0.000245,2]
[361911414,1747884647361,-44103.24649137,0.000245,2]
[361911415,1747884647371,-155.84756444,0.00024548,2]
[361911416,1747884647381,-151.0,0.000246,5]
[361911417,1747884647390,-1500.0,0.00024608,2]
[361911418,1747884647399,-1800.0,0.00024608,2]
[361911419,1747884647409,-960.0,0.00024617,2]
[361911420,1747884647419,-157.7160156,0.0002463,2]
[361911421,1747884647430,-182.6920467,0.0002463,2]
[361911422,1747884647442,-176.0716068,0.0002463,2]
[361911423,1747884647452,-158.1770606,0.0002463,2]
[361911424,1747884647462,-211.2414124,0.0002463,2]
[361911425,1747884647472,-342.3069495,0.0002463,2]
[361911426,1747884647482,-570.0198762,0.0002463,2]
[361911427,1747884647492,-46485.70139731,0.00024651,2]
[361911428,1747884647502,-22457.64985814,0.00024651,2]
[361911429,1747884647511,-430.0,0.00024656,2]
[361911430,1747884647522,-453.93,0.00024656,2]
[361911431,1747884647532,-921.43,0.00024656,2]
[361911432,1747884647543,-1321.89,0.00024656,2]
[361911433,1747884647554,-430.0,0.00024656,2]
[361911434,1747884647564,-151.95466,0.00024656,7]
[361911435,1747884647574,-430.0,0.00024657,2]
[361911436,1747884647584,-430.0,0.00024657,2]
[361911437,1747884647594,-430.0,0.00024657,2]
[361911438,1747884647603,-430.0,0.00024657,2]
[361911439,1747884647614,-2102.75,0.00024657,2]
[361911440,1747884647623,-227.88,0.00024657,2]
[361911441,1747884647633,-513.23,0.00024657,2]
[361911442,1747884647644,-1133.27,0.00024657,2]
[361911443,1747884647654,-430.0,0.00024657,2]
[361911444,1747884647664,-1754.8,0.00024657,2]
[361911445,1747884647674,-455.06,0.00024657,2]
[361911446,1747884647684,-415.32,0.00024657,2]
[361911447,1747884647693,-494.71,0.00024657,2]
[361911448,1747884647703,-430.0,0.00024657,2]
[361911449,1747884647713,-430.0,0.00024657,2]
[361911450,1747884647723,-568.05,0.00024657,2]
[361911451,1747884647733,-627.79,0.00024657,2]
[361911452,1747884647743,-430.0,0.00024657,2]
[361911453,1747884647753,-521.3,0.00024657,2]
[361911454,1747884647763,-150.0,0.00024658,2]
[361911455,1747884647772,-1000.0,0.00024658,2]
[361911456,1747884647782,-1000.0,0.00024658,2]
[361911457,1747884647792,-165.19382962,0.00024658,2]
[361911458,1747884647802,-500.0,0.00024658,2]
[361911459,1747884647812,-500.0,0.00024658,2]
[361911460,1747884647822,-500.0,0.00024658,2]
[361911461,1747884647832,-500.0,0.00024658,2]
[361911462,1747884647843,-500.0,0.00024658,2]
[361911463,1747884647855,-500.0,0.00024658,2]
[361911464,1747884647868,-500.0,0.00024658,2]
[361911465,1747884647878,-500.0,0.00024658,2]
[361911466,1747884647887,-500.0,0.00024658,2]
[361911467,1747884647899,-308.54166154,0.00024658,2]
[361911468,1747884647909,-500.0,0.00024658,2]
[361911469,1747884647918,-500.0,0.00024658,2]
[361911470,1747884647929,-500.0,0.00024658,2]
[361911471,1747884647939,-253.26387693,0.00024658,2]
[361911472,1747884647950,-500.0,0.00024658,2]
[361911473,1747884647959,-500.0,0.00024658,2]
[361911474,1747884647968,-500.0,0.00024658,2]
[361911475,1747884647978,-500.0,0.00024658,2]
[361911476,1747884647987,-500.0,0.00024658,2]
[361911477,1747884647996,-500.0,0.00024658,2]
[361911478,1747884648006,-500.0,0.00024658,2]
[361911479,1747884648016,-151.0,0.00024658,7]
[361911480,1747884648025,-1280.72751852,0.00024659,11]
[361911481,1747884648036,-25732.2882341,0.0002469,2]
[361911482,1747884648583,197.15162244,2.4e-05,7]
[361911483,1747884648795,-1018.89,0.00021917,2]
[361911484,1747884648806,-430.0,0.00021917,2]
[361911485,1747884648816,-404.45666876,0.00021917,2]
[361911486,1747884648826,-1018.89,0.00022191,2]
[361911487,1747884648836,-497.63,0.00022191,2]
[361911488,1747884648847,-1018.89,0.00022465,2]
[361911489,1747884648860,-1018.89,0.00022739,2]
[361911490,1747884648871,-1018.89,0.00023013,2]
[361911491,1747884648884,-1018.89,0.00023287,2]
[361911492,1747884648895,-1018.89,0.00023561,2]
[361911493,1747884648904,-1018.89,0.00023835,2]
[361911494,1747884648919,-1018.89,0.00024109,2]
[361911495,1747884648930,-1018.89,0.00024383,2]
[361911496,1747884648941,-1018.89,0.00024657,2]
[361911497,1747884648952,-214523.73737337,0.0002469,2]
[361911498,1747884648962,-151.0,0.0002469,7]
[361911499,1747884648971,-7895.63,0.000247,7]
[361911500,1747884648981,-14334.52,0.000247,2]
[361911501,1747884648991,-151.0,0.000247,7]
[361911502,1747884649001,-151.0,0.000247,7]
[361911503,1747884649010,-194.22045,0.000247,7]
[361911504,1747884649019,-194.22045,0.000247,7]
[361911505,1747884649029,-151.0,0.000247,7]
[361911506,1747884649038,-151.0,0.000247,7]
[361911507,1747884649047,-786.594672,0.000247,7]
[361911508,1747884649057,-786.594672,0.000247,7]
[361911509,1747884649067,-800.0,0.00024742,2]
[361911510,1747884649077,-486.92826546,0.00024747,2]
[361911511,1747884649086,-166.678904,0.0002475,7]
[361911512,1747884649096,-151.0,0.0002475,7]
[361911513,1747884649105,-151.0,0.0002475,7]
[361911514,1747884649114,-163.016506,0.0002475,7]
[361911515,1747884649124,-163.016506,0.0002475,7]
[361911516,1747884649133,-151.0,0.0002475,7]
[361911517,1747884649144,-151.0,0.0002475,7]
[361911518,1747884649154,-192971.5422419,0.0002475,2]
[361911519,1747884649164,-151.571937,0.0002475,7]
[361911520,1747884649175,-295.277658,0.0002475,7]
[361911521,1747884649185,-295.277658,0.0002475,7]
[361911522,1747884649195,-151.0,0.0002475,7]
[361911523,1747884649205,-151.0,0.0002475,7]
[361911524,1747884649216,-674.493645,0.0002475,7]
[361911525,1747884649225,-674.493645,0.0002475,7]
[361911526,1747884649235,-151.0,0.0002475,7]
[361911527,1747884649244,-151.0,0.0002475,7]